bitfinex/quotes_ETHUSD_20260114
["timestamp","ask_amount","ask_price","bid_price","bid_amount"]
[1768399860599,0.91490153,3311.1,3310.4,3.02078298]
[1768399860600,3.93512856,3311.1,3310.4,3.02078298]
[1768399861690,0.91490153,3311.0,3310.3,3.43380369]
[1768399861899,0.99992909,3310.9,3310.3,0.001]
[1768399862084,0.91490153,3310.8,3310.3,0.001]
[1768399862470,3.82382136,3311.0,3310.3,0.001]
[1768399862874,3.41382136,3311.0,3310.3,0.001]
[1768399863075,0.64340502,3310.9,3310.3,0.001]
[1768399863808,0.64340502,3310.9,3309.3,0.9688598]
[1768399863809,0.99992909,3310.8,3309.3,0.9688598]
[1768399863973,0.91490153,3310.3,3309.3,0.412]
[1768399864173,0.91490153,3310.3,3309.3,3.43374799]
[1768399864585,0.91490153,3310.3,3309.3,0.412]
[1768399864776,0.69564675,3310.2,3309.3,3.43376608]
[1768399865276,0.91490153,3310.1,3309.2,3.02184369]
[1768399865479,0.91490153,3310.1,3308.8,3.43417678]
[1768399865906,0.91490153,3310.1,3308.8,3.02217678]
[1768399866101,0.91490153,3309.9,3308.8,3.43417678]
[1768399866304,0.91490153,3309.7,3308.8,3.02217678]
[1768399866487,0.91490153,3309.7,3308.8,3.43417678]
[1768399866689,0.91490153,3309.7,3308.7,3.02229989]
[1768399867008,0.91490153,3309.7,3308.8,6.04446677]
[1768399868391,0.91490153,3309.7,3308.7,6.0446701]
[1768399868594,3.02114803,3310.0,3308.8,0.74255299]
[1768399868801,6.04230452,3310.0,3308.9,0.9688598]
[1768399870489,3.02114803,3310.0,3309.0,6.04412208]
[1768399871383,3.93604956,3310.0,3309.0,7.01298188]
[1768399871619,3.02114803,3310.0,3309.1,1.67015799]
[1768399872526,3.02108936,3310.1,3309.2,3.02187839]
[1768399872894,3.43100087,3310.2,3309.2,6.04375678]
[1768399873219,0.91490153,3310.9,3309.3,0.9688598]
[1768399873520,0.91490153,3311.1,3309.5,0.9688598]
[1768399873684,0.99992909,3311.1,3309.6,0.9688598]
[1768399874781,3.9351371,3311.0,3309.7,7.01170356]
[1768399874980,3.02023557,3311.0,3309.8,0.9688598]
[1768399875183,3.02006843,3311.2,3310.0,0.9688598]
[1768399875184,3.02005315,3311.2,3310.0,0.9688598]
[1768399875487,3.43198159,3311.3,3310.0,0.9688598]
[1768399876721,3.43198159,3311.3,3310.2,0.9688598]
[1768399877032,7.36686471,3311.3,3310.2,0.9688598]
[1768399877233,0.91490153,3311.2,3310.1,6.04211352]
[1768399877390,0.91490153,3311.1,3310.1,6.75599847]
[1768399877584,0.91490153,3311.2,3310.1,6.75599847]
[1768399877827,0.91490153,3311.2,3310.2,0.412]
[1768399878202,0.91690153,3311.3,3310.3,0.9688598]
[1768399878488,0.002,3311.3,3310.3,0.9688598]
[1768399878687,0.91690153,3311.3,3310.2,0.412]
[1768399879009,0.91490153,3311.2,3310.3,4.38036245]
[1768399879227,0.91490153,3311.2,3310.3,3.43284542]
[1768399879524,0.91490153,3311.2,3310.3,6.45371966]
[1768399880034,0.91490153,3311.2,3310.3,3.43284542]
[1768399880205,0.95410617,3311.1,3310.3,3.43284542]
[1768399880903,0.99174081,3311.0,3310.3,3.43284542]
[1768399882247,0.99374081,3311.3,3310.3,7.37121968]
[1768399882432,0.99174081,3311.2,3309.9,0.68473597]
[1768399882612,0.99174081,3311.2,3310.1,3.02105058]
[1768399882936,0.99174081,3311.2,3310.1,3.02105676]
[1768399882937,3.02014436,3311.1,3310.1,3.02105676]
[1768399883119,0.99174081,3311.0,3310.1,3.02105676]
[1768399883320,0.99174081,3311.0,3310.1,6.07232408]
[1768399883521,6.0401718,3311.2,3310.2,0.74018241]
[1768399883846,7.03191261,3311.2,3310.2,0.74018241]
[1768399884144,0.99174081,3311.1,3310.2,0.74018241]
[1768399884339,0.99174081,3311.1,3310.0,4.35061539]
[1768399884729,0.99174081,3311.1,3310.0,3.93861539]
[1768399884941,0.99174081,3310.9,3309.9,3.02120939]
[1768399885140,4.01215883,3310.8,3310.0,3.43312568]
[1768399885339,4.01215883,3310.8,3310.0,3.43314694]
[1768399885644,0.002,3310.7,3310.0,1.67281471]
[1768399885846,0.002,3311.0,3310.1,0.91750002]
[1768399886226,0.99174081,3310.8,3309.9,3.02122013]
[1768399886434,0.99174081,3310.8,3310.0,0.412]
[1768399886626,0.99174081,3310.8,3310.0,3.43314367]
[1768399887133,3.02039826,3310.9,3310.0,6.4542917]
[1768399887446,3.02039826,3310.9,3310.0,6.79760607]
[1768399887624,3.02227428,3311.0,3310.0,6.79760607]
[1768399888321,0.002,3311.0,3310.0,7.71510609]
[1768399888538,0.002,3311.0,3310.1,1.71922119]
[1768399888727,0.002,3311.0,3310.2,0.91750002]
[1768399889541,0.002,3311.0,3310.3,6.9592485]
[1768399890043,0.002,3311.0,3310.4,0.91750002]
[1768399890216,0.002,3311.0,3310.5,1.10792485]
[1768399890549,0.002,3311.0,3310.6,0.91750002]
[1768399890725,0.08502756,3310.9,3310.3,0.412]
[1768399890929,0.08502756,3310.9,3310.0,1.32950002]
[1768399891119,0.08502756,3310.9,3310.1,3.02099611]
[1768399891320,3.02223557,3311.0,3310.1,3.02105676]
[1768399891516,0.002,3311.0,3310.2,0.94770967]
[1768399891723,0.002,3311.0,3310.3,0.412]
[1768399892211,0.99374081,3311.0,3310.3,0.412]
[1768399892646,0.002,3311.0,3310.3,0.412]
[1768399893449,0.002,3311.0,3310.3,3.43280325]
[1768399893641,0.002,3311.0,3310.4,0.34328033]
[1768399893842,0.002,3311.0,3310.3,0.412]
[1768399894159,0.002,3311.0,3310.3,4.35034455]
[1768399894464,0.002,3311.0,3310.4,0.91750002]
[1768399894615,0.002,3311.0,3310.1,0.43505568]
[1768399894820,0.002,3311.0,3310.0,0.91750002]
[1768399894821,0.08502756,3310.9,3309.7,0.91750002]
[1768399895022,0.002,3311.0,3310.1,0.91750002]
[1768399895251,0.99374081,3311.0,3310.1,3.02102402]
[1768399895551,4.0120676,3310.9,3309.9,3.02121541]
[1768399895730,0.99174081,3310.8,3309.9,3.43321541]
[1768399896044,0.99174081,3310.8,3309.9,4.1704216]
[1768399896253,0.99174081,3310.8,3309.9,1.14920619]
[1768399897444,3.02050925,3310.7,3310.0,3.02114803]
[1768399897639,4.01225006,3310.7,3309.5,0.91750002]
[1768399897838,0.99174081,3310.6,3309.6,0.412]
[1768399898038,0.99174081,3310.6,3309.8,3.02132938]
[1768399898242,0.99174081,3310.6,3310.2,0.001]
[1768399898643,0.002,3311.0,3310.2,0.001]
[1768399899158,3.02226837,3311.0,3310.2,0.001]
[1768399899660,0.002,3311.0,3310.2,0.001]
[1768399901658,3.02032679,3310.9,3310.2,0.001]
[1768399901953,3.66747598,3311.0,3310.2,0.001]
[1768399901954,3.02226506,3311.0,3310.2,0.001]
[1768399902454,3.02225515,3311.0,3310.2,0.001]
[1768399902960,3.02225515,3311.0,3310.2,0.91850002]
[1768399903157,4.01399596,3311.0,3310.2,0.001]
[1768399903348,0.4013996,3310.9,3310.2,0.001]
[1768399903548,0.99174081,3310.9,3310.2,0.001]
[1768399903934,3.02034612,3310.9,3310.2,0.001]
[1768399904145,3.022273,3311.0,3310.2,0.001]
[1768399904451,0.99174081,3310.9,3310.2,0.001]
[1768399904663,6.12757356,3311.0,3310.2,0.001]
[1768399904664,0.002,3311.0,3310.2,0.001]
[1768399904834,0.002,3311.0,3310.2,0.91850002]
[1768399905029,0.002,3311.0,3310.2,1.65577573]
[1768399905248,3.02223787,3311.0,3310.2,1.65577573]
[1768399905430,0.002,3311.0,3310.2,1.65577573]
[1768399905759,3.022255,3311.0,3310.2,1.65577573]
[1768399906352,0.002,3311.0,3310.2,1.65577573]
[1768399906664,0.99374081,3311.0,3310.2,0.001]
[1768399907360,0.99174081,3310.4,3309.3,0.91750002]
[1768399907564,0.99174081,3310.4,3309.4,3.02163829]
[1768399907743,0.99174081,3310.4,3309.2,3.0218182]
[1768399907932,0.99174081,3310.4,3309.3,0.412]
[1768399908132,0.99174081,3310.4,3309.3,3.36516077]
[1768399908333,4.01261505,3310.3,3309.4,3.02169539]
[1768399908534,4.01261505,3310.3,3309.3,3.36513721]
[1768399908845,0.9534765,3310.2,3309.3,3.36513721]
[1768399909166,3.97424322,3310.5,3309.4,0.98748066]
[1768399909328,3.97424322,3310.5,3309.5,0.7374405]
[1768399909536,0.9534765,3310.4,3309.5,0.7374405]
[1768399910568,0.9534765,3310.3,3309.5,3.75898738]
[1768399910746,0.9534765,3310.3,3309.6,0.001]
[1768399910948,0.9534765,3310.3,3309.6,0.67916793]
[1768399911371,0.98275584,3311.0,3309.7,0.90511684]
[1768399911537,0.98275584,3311.0,3309.8,0.93533014]
[1768399911741,0.98275584,3311.0,3310.0,0.90511684]
[1768399911938,0.98275584,3311.0,3309.9,0.412]
[1768399912143,0.98275584,3311.0,3309.9,1.31711684]
[1768399912344,0.002,3311.0,3310.0,0.90511684]
[1768399912551,0.002,3311.0,3310.1,3.02105676]
[1768399912768,0.002,3311.0,3310.2,0.69472866]
[1768399912972,0.98275584,3311.0,3310.1,3.02105676]
[1768399913492,0.002,3311.3,3310.1,3.02105676]
[1768399913493,0.002,3311.3,3310.4,0.90511684]
[1768399913793,0.002,3311.3,3310.2,0.03020965]
[1768399913794,0.98075584,3311.2,3310.2,0.03020965]
[1768399914088,3.02196463,3311.3,3310.2,1.31711684]
[1768399914243,3.02196463,3311.3,3310.3,0.73592304]
[1768399914440,3.02196463,3311.3,3310.3,1.66942292]
[1768399914676,0.99915281,3311.3,3310.3,4.69023071]
[1768399914859,0.99915281,3311.3,3310.3,3.75673083]
[1768399915654,0.002,3311.3,3310.4,0.93349988]
[1768399915796,3.01972063,3311.6,3310.5,0.7711105]
[1768399915983,3.01972063,3311.6,3310.5,1.70461038]
[1768399916184,4.01687344,3311.6,3310.5,1.70461038]
[1768399916387,4.01687344,3311.6,3310.6,0.17046104]
[1768399916581,4.01687344,3311.6,3310.7,3.02050925]
[1768399916786,0.99715281,3311.5,3310.6,3.02059151]
[1768399917398,0.99715281,3311.5,3310.4,3.0207113]
[1768399917702,1.08218037,3311.5,3310.1,0.93349988]
[1768399917889,4.01687344,3311.6,3310.6,3.02059645]
[1768399918191,0.99715281,3311.5,3310.6,3.02059645]
[1768399918694,3.42987074,3311.4,3310.4,3.05098209]
[1768399918901,3.42987074,3311.4,3310.4,3.98448197]
[1768399919064,3.42987074,3311.4,3310.4,4.72456153]
[1768399919260,0.99715281,3311.5,3310.4,7.74534451]
[1768399919481,4.01693736,3311.5,3310.4,7.71513669]
[1768399919717,4.42693736,3311.5,3310.4,7.71513669]
[1768399919918,0.99715281,3311.7,3310.5,0.93349988]
[1768399920223,0.99715281,3311.6,3310.5,0.77151367]
[1768399920516,0.99715281,3311.6,3310.4,3.02077427]
[1768399920517,1.08218037,3311.6,3310.4,3.02077427]
[1768399920808,0.99715281,3311.4,3310.4,6.04155725]
[1768399921016,0.99715281,3311.4,3310.4,6.97505713]
[1768399921718,0.99715281,3311.4,3310.4,3.95427415]
[1768399921935,0.41,3311.5,3310.5,0.93349988]
[1768399922116,1.40715281,3311.5,3310.5,0.93349988]
[1768399922425,0.002,3311.2,3310.5,0.93349988]
[1768399922781,0.002,3311.2,3310.6,3.02060049]
[1768399922986,0.002,3311.2,3310.6,6.04120098]
[1768399923218,0.002,3311.2,3310.6,6.8164971]
[1768399923423,0.002,3311.2,3310.6,7.74999698]
[1768399923796,0.002,3311.2,3310.6,4.72939649]
[1768399924000,0.99715281,3311.9,3310.7,0.93349988]
[1768399924192,1.08218037,3311.9,3310.8,1.49208035]
[1768399924827,1.08218037,3311.9,3310.2,0.001]
[1768399924828,0.99715281,3311.3,3310.2,0.001]
[1768399925119,0.99715281,3311.2,3310.2,0.001]
[1768399925829,0.99715281,3311.3,3310.2,0.001]
[1768399926134,1.08218037,3311.3,3310.2,0.001]
[1768399926436,0.99715281,3311.0,3310.2,0.001]
[1768399926618,0.08502756,3311.1,3310.2,0.001]
[1768399926619,0.99715281,3310.8,3310.2,0.001]
[1768399926820,0.99715281,3310.6,3310.2,0.001]
[1768399926996,0.70381713,3310.5,3310.2,0.001]
[1768399928143,0.99715281,3310.4,3309.6,0.001]
[1768399928293,0.99715281,3310.3,3309.6,0.001]
[1768399929000,7.03908381,3310.2,3309.6,0.001]
[1768399929187,0.70390838,3310.1,3309.6,0.001]
[1768399929392,0.99715281,3310.0,3309.6,0.001]
[1768399929688,0.99715281,3310.0,3309.0,0.001]
[1768399929892,0.99715281,3309.8,3309.0,0.001]
[1768399931092,3.02114803,3310.0,3309.1,3.02193858]
[1768399931502,3.02114803,3310.0,3309.1,6.04390829]
[1768399931915,3.02114803,3310.0,3309.1,3.02193858]
[1768399932311,0.99715281,3309.9,3309.0,3.435026]
[1768399932487,0.99715281,3309.7,3309.0,3.023026]
[1768399933309,0.99715281,3309.7,3309.0,0.001]
[1768399933911,4.01860075,3309.7,3309.0,0.001]
[1768399935325,7.04004869,3309.7,3309.0,0.001]
[1768399935528,0.77439936,3309.6,3309.0,0.001]
[1768399935729,0.99715281,3310.1,3309.3,0.001]
[1768399936104,3.02114803,3310.0,3309.3,0.001]
[1768399936299,3.43100364,3310.2,3309.3,0.001]
[1768399936602,4.01806317,3310.3,3309.3,0.001]
[1768399936803,4.42806317,3310.3,3309.3,0.001]
[1768399937194,7.44897353,3310.3,3309.3,0.001]
[1768399937425,3.02105676,3310.1,3309.3,0.001]
[1768399937828,0.41,3310.3,3309.3,0.93449988]
[1768399938250,4.42803256,3310.3,3309.3,0.001]
[1768399938456,0.99715281,3310.2,3309.3,0.60549394]
[1768399939541,3.02105676,3310.1,3309.3,3.62719068]
[1768399940465,0.9803831,3309.5,3308.3,3.0226356]
[1768399940630,0.9803831,3309.5,3308.2,0.412]
[1768399940828,0.41,3309.6,3308.9,3.02207641]
[1768399941054,0.41,3309.6,3308.8,0.03022243]
[1768399941258,0.41,3309.6,3308.6,0.92702827]
[1768399941659,0.41,3309.6,3308.7,6.0446701]
[1768399941864,0.41,3309.6,3308.8,0.69716984]
[1768399942257,3.02114803,3310.0,3308.9,0.03022152]
[1768399942441,4.0090933,3310.1,3308.9,0.03022152]
[1768399942442,0.41,3309.9,3308.9,0.92702827]
[1768399942637,4.4190123,3310.1,3308.9,0.92702827]
[1768399942970,3.0208793,3310.3,3309.0,1.11966869]
[1768399943133,3.0208793,3310.3,3309.0,1.08944808]
[1768399943531,0.98794911,3310.0,3309.0,0.16241981]
[1768399943756,0.98794911,3310.0,3309.0,3.02202282]
[1768399944077,0.98794911,3310.0,3308.9,3.02210092]
[1768399944381,6.04211352,3310.1,3309.0,3.02205711]
[1768399944382,0.98794911,3309.8,3309.0,3.02205711]
[1768399945064,0.98794911,3309.8,3309.0,3.02204822]
[1768399945974,0.98794911,3309.6,3308.4,0.92802827]
[1768399946283,1.6910284,3309.5,3308.5,3.43446801]
[1768399946570,1.6910284,3309.5,3308.7,3.02228722]
[1768399946571,0.70307929,3309.5,3308.7,3.02228722]
[1768399947146,0.70507929,3309.5,3308.7,3.02228722]
[1768399947359,0.70507929,3309.5,3308.7,3.02227977]
[1768399948078,3.02169577,3309.4,3308.5,3.0225065]
[1768399948289,3.69654054,3309.4,3308.5,3.4345065]
[1768399948753,6.71823631,3309.4,3308.5,3.4345065]
[1768399949685,3.69654054,3309.4,3308.5,3.4345065]
[1768399949850,6.71823631,3309.4,3308.5,3.4345065]
[1768399950045,0.77081854,3309.3,3308.5,3.4345065]
[1768399950246,3.02187839,3309.2,3308.5,3.4345065]
[1768399950981,3.79263341,3309.3,3308.5,3.4345065]
[1768399951552,7.80239739,3309.3,3308.4,0.001]
[1768399951753,0.98794911,3309.2,3308.4,0.001]
[1768399951953,0.98794911,3309.0,3308.4,0.001]
[1768399952478,0.98794911,3308.8,3307.7,0.001]
[1768399953749,0.98794911,3308.6,3307.7,0.001]
[1768399954252,0.98794911,3308.4,3307.7,0.001]
[1768399955979,0.98794911,3309.2,3307.8,0.92702827]
[1768399956156,0.98794911,3309.2,3307.9,1.04228648]
[1768399956356,0.98794911,3309.2,3308.1,0.08502756]
[1768399956557,0.98794911,3309.2,3308.2,0.7058005]
[1768399956747,4.00983223,3309.2,3308.2,0.7058005]
[1768399956950,4.00983223,3309.2,3308.2,1.1178005]
[1768399957756,0.98794911,3309.1,3307.9,2.93993816]
[1768399957955,0.98794911,3309.1,3307.9,5.96300415]
[1768399958483,3.02206104,3309.0,3307.9,5.96300415]
[1768399958784,7.03207119,3309.0,3307.9,5.96300415]
[1768399958983,4.01001015,3309.0,3307.9,5.96300415]
[1768399959282,0.98794911,3309.0,3308.0,0.63750042]
[1768399959488,6.04409092,3309.1,3308.0,0.63750042]
[1768399959657,6.04409092,3309.1,3308.0,1.04950042]
[1768399959658,0.98794911,3309.0,3308.0,1.04950042]
[1768399959854,0.98794911,3309.0,3308.5,0.001]
[1768399960051,0.703204,3308.9,3308.5,0.001]
[1768399960657,4.01001361,3309.0,3308.5,0.001]
[1768399960884,3.43380361,3309.3,3308.5,0.001]
[1768399961193,3.02380361,3309.3,3308.5,0.001]
[1768399961406,0.002,3309.3,3308.5,0.001]
[1768399961808,0.98794911,3309.2,3308.5,0.001]
[1768399962019,3.02381272,3309.3,3308.5,0.001]
[1768399963083,0.002,3309.3,3308.5,0.001]
[1768399964492,0.002,3309.3,3308.6,1.33902827]
[1768399964699,0.002,3309.3,3308.7,6.0446701]
[1768399964897,0.002,3309.3,3308.8,0.73836984]
[1768399967015,0.002,3309.5,3308.9,6.04430474]
[1768399967615,0.002,3309.5,3308.9,3.02215237]
[1768399967993,0.002,3309.5,3308.9,6.04430474]
[1768399973229,0.002,3309.2,3308.9,6.04430474]
[1768399973432,0.002,3309.5,3308.9,6.7225722]
[1768399974701,0.002,3309.5,3308.9,3.70041983]
[1768399974949,0.91955779,3309.5,3308.6,3.43442378]
[1768399975309,0.91955779,3309.5,3308.8,3.02218108]
[1768399975711,0.91955779,3309.5,3308.9,3.02213983]
[1768399976274,0.91955779,3309.5,3308.7,6.04466166]
[1768399977277,0.91955779,3309.5,3308.7,3.02232661]
[1768399977278,0.91755779,3309.4,3308.7,3.02232661]
[1768399977970,0.91755779,3309.4,3308.7,6.04466166]
[1768399978142,0.91755779,3309.4,3308.8,3.62663378]
[1768399979177,0.91755779,3309.4,3308.8,6.64887749]
[1768399983901,0.91755779,3309.4,3308.8,3.62663378]
[1768399984095,0.91755779,3309.4,3308.8,3.02216761]
[1768399985173,0.91755779,3309.4,3308.6,6.0448528]
[1768399985373,0.91755779,3309.4,3309.1,0.001]
[1768399987907,0.002,3309.5,3309.1,0.96118075]
[1768399988101,0.002,3309.5,3309.1,0.001]
[1768399991109,0.91955779,3309.5,3309.1,0.001]
[1768399992095,0.002,3309.5,3309.1,0.001]
[1768399992303,0.91955779,3309.5,3308.5,0.413]
[1768399992598,0.91755779,3309.4,3308.5,0.001]
[1768399992786,6.45526436,3309.5,3308.5,0.001]
[1768399992787,0.91755779,3309.2,3308.5,0.413]
[1768399993313,0.91755779,3309.2,3308.6,3.02237911]
[1768399993625,3.93944068,3309.2,3308.6,3.02237911]
[1768399993792,0.91755779,3309.2,3308.6,3.02237911]
[1768399994192,0.73728222,3309.3,3308.6,6.04480551]
[1768399995240,3.75910072,3309.3,3308.6,3.02237911]
[1768399995594,0.46766585,3309.2,3308.6,3.02237911]
[1768399996139,0.46766585,3309.2,3308.6,6.04480551]
[1768399996428,0.73728222,3309.3,3308.6,6.04480551]
[1768399996598,0.73728222,3309.3,3308.6,3.02237911]
[1768399996798,3.75911742,3309.3,3308.6,3.02237911]
[1768399997525,0.73728222,3309.3,3308.9,0.001]
[1768399998126,3.7590745,3309.3,3308.9,0.001]
[1768399998351,0.46766323,3309.2,3308.9,0.001]
[1768399999133,1.38522102,3309.2,3308.9,0.001]
[1768399999339,0.91755779,3309.1,3308.5,0.001]
[1768399999559,0.46766323,3309.2,3307.7,3.436246]
[1768399999560,0.91755779,3308.7,3307.7,3.436246]
[1768399999854,0.91755779,3308.7,3307.8,6.95730719]
[1768400000401,0.91755779,3308.7,3307.8,6.04631476]
[1768400001137,3.92607693,3308.9,3307.9,0.95055605]
[1768400001340,3.43212735,3309.0,3308.1,0.95055605]
[1768400001697,6.4542547,3309.0,3308.1,3.97337129]
[1768400001894,7.35813943,3309.0,3308.1,3.97337129]
[1768400002103,8.09395337,3309.0,3308.1,3.97337129]
[1768400002314,0.90388473,3308.9,3308.1,3.97337129]
[1768400002598,0.90388473,3308.9,3308.1,3.02281524]
[1768400002925,0.90388473,3308.9,3308.0,3.02293612]
[1768400003126,0.90388473,3308.9,3308.0,3.43491581]
[1768400003304,0.90388473,3308.7,3307.9,3.02304795]
[1768400003511,0.90388473,3308.7,3307.7,3.02424031]
[1768400003512,0.90388473,3308.7,3307.8,3.02314831]
[1768400003714,3.02234079,3308.7,3307.7,0.95155605]
[1768400003901,3.02207347,3309.0,3307.9,0.95055605]
[1768400004101,0.41,3308.9,3307.9,0.9807867]
[1768400004302,0.90388473,3309.3,3308.3,0.95055605]
[1768400004501,0.41,3309.2,3308.4,0.03022609]
[1768400004714,0.41,3309.1,3308.4,0.03022609]
[1768400004916,0.41,3309.1,3308.3,0.95055605]
[1768400005909,3.43199649,3309.1,3308.3,3.97320075]
[1768400006537,0.41,3309.1,3308.4,0.6995961]
[1768400006941,3.43197733,3309.1,3308.4,0.6995961]
[1768400007940,4.33586206,3309.1,3308.4,3.72216957]
[1768400008648,4.33586206,3309.1,3308.4,0.6995961]
[1768400008952,0.90388473,3309.0,3308.3,3.02266219]
[1768400009311,0.90388473,3309.0,3308.1,3.97342287]
[1768400009557,0.90388473,3309.0,3308.4,0.001]
[1768400009910,0.002,3308.7,3308.4,0.001]
[1768400011782,0.90388473,3308.5,3307.7,3.02419672]
[1768400011912,0.90388473,3308.5,3307.7,3.32661639]
[1768400012236,0.90388473,3308.4,3307.7,3.32661639]
[1768400012572,3.02255649,3308.5,3307.7,6.34986517]
[1768400012708,3.92644122,3308.5,3307.7,6.34986517]
[1768400012904,0.90388473,3308.4,3307.7,6.34986517]
[1768400013207,0.90388473,3308.4,3307.7,3.32661639]
[1768400013725,0.90388473,3308.4,3307.7,6.0474455]
[1768400014105,0.90388473,3308.3,3307.7,0.001]
[1768400015028,4.33635349,3308.6,3307.7,0.001]
[1768400016351,0.90588473,3308.7,3307.8,0.95055605]
[1768400016639,1.31588473,3308.7,3307.9,0.69980536]
[1768400017538,0.412,3308.7,3308.0,0.95055605]
[1768400017739,0.412,3309.0,3308.1,0.95055605]
[1768400017937,0.002,3309.0,3308.1,0.95055605]
[1768400018740,3.02406104,3309.0,3308.1,0.95055605]
[1768400018944,3.02406104,3309.0,3308.2,0.69965053]
[1768400020631,0.002,3309.0,3308.3,3.02270048]
[1768400022039,0.90388473,3308.9,3308.3,3.02270048]
[1768400022743,3.02407219,3309.0,3308.3,3.02270048]
[1768400023314,0.002,3308.7,3308.3,3.02270048]
[1768400023543,0.002,3308.7,3308.3,3.39077027]
[1768400024218,0.002,3308.7,3308.3,6.41347075]
[1768400024619,0.002,3309.0,3308.4,0.95055605]
[1768400027157,0.002,3309.0,3308.5,3.02251775]
[1768400029347,0.002,3309.0,3308.4,3.02260911]
[1768400030846,0.95606671,3309.0,3308.3,3.39073958]
[1768400031245,0.95606671,3309.0,3308.3,3.02266979]
[1768400031460,0.95406671,3308.9,3308.2,3.02374577]
[1768400034563,0.95406671,3308.7,3308.0,6.0459492]
[1768400035065,0.95406671,3308.7,3307.8,6.04631476]
[1768400035252,0.95406671,3308.7,3307.9,0.74334951]
[1768400035453,3.97640287,3308.7,3308.2,0.001]
[1768400035936,0.95406671,3308.6,3308.2,0.001]
[1768400038237,0.95406671,3308.8,3308.2,0.001]
[1768400041762,3.02412401,3309.0,3308.2,0.001]
[1768400041763,0.002,3309.0,3308.2,0.97418032]
[1768400042061,0.412,3309.0,3308.4,0.97318032]
[1768400042766,0.412,3309.0,3308.3,0.70199468]
[1768400043067,0.95406671,3308.9,3308.2,0.001]
[1768400043436,0.412,3309.0,3308.2,0.97418032]
[1768400044043,1.36606671,3309.0,3308.3,6.04540096]
[1768400044253,0.412,3309.0,3308.3,7.01858128]
[1768400044767,0.41,3309.2,3308.6,0.97318032]
[1768400044968,0.41,3309.2,3308.6,1.50881256]
[1768400045170,0.41,3309.2,3308.6,0.97318032]
[1768400045348,0.41,3309.2,3308.4,0.97318032]
[1768400045933,0.41,3309.2,3308.5,6.0450355]
[1768400046163,0.41,3309.2,3308.5,7.01821582]
[1768400046351,0.95406671,3309.4,3308.5,7.01821582]
[1768400046352,0.41,3309.3,3308.5,7.01821582]
[1768400046555,0.41,3309.3,3308.6,1.00407781]
[1768400046855,1.36406671,3309.3,3308.6,1.00407781]
[1768400047745,0.002,3308.9,3308.7,0.97318032]
[1768400048071,0.41,3309.4,3308.8,7.01766774]
[1768400048371,0.41,3309.4,3308.8,6.04448742]
[1768400048572,0.41,3309.4,3308.8,6.80793529]
[1768400049066,0.95606671,3309.5,3308.8,6.80793529]
[1768400049271,1.36606671,3309.5,3308.8,6.80793529]
[1768400049571,1.36606671,3309.5,3308.8,3.78569158]
[1768400050172,1.36606671,3309.5,3308.8,6.80793529]
[1768400052554,0.95406671,3309.4,3308.8,3.02224371]
[1768400054271,0.95406671,3309.4,3308.5,7.01821582]
[1768400055182,0.95406671,3309.4,3308.5,14.42387565]
[1768400055586,0.95406671,3309.4,3308.5,7.01821582]
[1768400056171,0.412,3309.5,3308.6,0.97318032]
[1768400056378,0.412,3309.5,3308.8,6.04448742]
[1768400056585,0.002,3309.6,3309.0,0.97318032]
[1768400057149,0.95606671,3309.6,3308.8,6.04448742]
[1768400057353,0.95606671,3309.6,3308.9,0.70485608]
[1768400057580,0.95406671,3309.5,3308.8,6.45748742]
[1768400058148,0.95406671,3309.5,3308.8,6.04448742]
[1768400058352,0.95406671,3309.4,3308.8,6.04448742]
[1768400058751,0.95406671,3309.4,3308.8,3.02224371]
[1768400059356,0.95406671,3309.4,3308.7,3.43528924]
[1768400060183,0.98788969,3309.3,3308.9,0.001]
[1768400060347,0.98988969,3309.1,3308.9,0.001]
[1768400064048,0.002,3309.4,3308.9,0.001]
[1768400064263,0.412,3309.4,3308.9,0.9081442]
[1768400064783,0.412,3309.4,3309.0,3.02206104]
[1768400066777,0.412,3309.4,3308.9,3.02311799]
[1768400067085,0.95360429,3309.3,3308.9,3.02311799]
[1768400068155,0.412,3309.4,3308.9,3.02311799]
[1768400068782,0.412,3309.4,3308.9,0.001]
[1768400070687,0.002,3309.4,3308.9,0.001]
[1768400070891,0.412,3309.4,3308.9,0.001]
[1768400071588,1.36560429,3309.4,3308.9,0.001]
[1768400071778,1.80453038,3309.4,3308.9,0.001]
[1768400071978,4.82624234,3309.4,3308.9,0.001]
[1768400072158,1.36560429,3309.4,3308.9,0.001]
[1768400073574,0.95560429,3309.4,3308.9,0.001]
[1768400073774,0.412,3309.4,3309.2,0.001]
[1768400073975,3.4337049,3309.4,3309.2,0.001]
[1768400074595,4.17478817,3309.4,3309.2,0.001]
[1768400075606,4.17481776,3309.4,3309.2,0.001]
[1768400075914,5.12842205,3309.4,3309.2,0.001]
[1768400078015,2.10668756,3309.4,3309.2,0.001]
[1768400078602,0.95360429,3309.3,3309.2,0.001]
[1768400079703,0.90360429,3309.3,3309.2,0.001]
[1768400079899,4.17478104,3309.4,3309.2,0.001]
[1768400080072,1.15308327,3309.4,3309.2,0.001]
[1768400081385,0.412,3309.4,3309.2,0.001]
[1768400084486,0.002,3309.4,3309.2,0.001]
[1768400085702,3.02370196,3309.4,3309.2,0.001]
[1768400086001,6.99900821,3309.4,3309.2,0.001]
[1768400086214,3.97730625,3309.4,3309.2,0.001]
[1768400086379,0.95360429,3309.3,3309.2,0.001]
[1768400086777,0.002,3309.4,3309.2,0.001]
[1768400087914,0.002,3309.6,3309.3,4.38314208]
[1768400088101,0.95360429,3310.0,3309.2,0.9081442]
[1768400088303,0.41,3310.1,3309.2,0.9081442]
[1768400088479,0.41,3310.1,3309.3,6.95071836]
[1768400088680,0.41,3310.1,3309.4,0.69517184]
[1768400089175,0.41,3310.1,3309.4,1.60231604]
[1768400089387,3.43108067,3310.1,3309.4,1.60231604]
[1768400089598,0.95360429,3310.0,3309.4,0.69517184]
[1768400089790,0.95360429,3309.7,3309.3,3.02178708]
[1768400091110,0.95360429,3309.7,3309.2,6.04475022]
[1768400091484,0.95360429,3309.7,3309.2,3.02287183]
[1768400092704,0.95360429,3309.7,3309.2,6.04475022]
[1768400092879,0.95360429,3309.7,3309.3,0.64577502]
[1768400093694,0.95360429,3309.7,3309.4,3.02169577]
[1768400095205,0.97659729,3310.0,3309.4,3.02169577]
[1768400095412,4.40771068,3310.1,3309.4,3.02169577]